[Event "26th Abu Dhabi Master 2019"]
[Site "Abu Dhabi"]
[Date "2019.08.04"]
[Round "4.43"]
[White "Siva Mahadevan"]
[Black "Aditya Mittal"]
[Result "0-1"]
[ECO "B94"]
[WhiteElo "2270"]
[BlackElo "2429"]
[Annotator "NA"]
[PlyCount "102"]
[EventDate "2019.08.02"]
[EventType "swiss"]
[EventCountry "UAE"]
[SourceTitle "playchess.com"]
[Source "ChessBase"]
[SourceQuality "1"]
[TimeControl "5400+30"]

1. e4 {[%emt 0:00:00]} c5 {[%emt 0:00:00]} 2. Nf3 {[%emt 0:00:00]} d6 {[%emt 0:00:00]} 3. d4 {[%emt 0:00:00]} cxd4 {[%emt 0:00:00]} 4. Nxd4 {[%emt 0:00:08]} Nf6 {[%emt 0:00:04]} 5. Nc3 {[%emt 0:00:09]} a6 {[%emt 0:00:05]} 6. Bg5 {[%emt 0:02:05]} Nbd7 {[%emt 0:00:09]} 7. Bc4 {[%emt 0:01:57]} h6 {[%emt 0:15:34]} 8. Bh4 {[%emt 0:01:32]} e6 {[%emt 0:03:32]} 9. Qe2 {[%emt 0:07:10]} Ne5 {[%emt 0:15:28]} 10. Bb3 {[%emt 0:01:11]} g5 {[%emt 0:02:17]} 11. Bg3 {[%emt 0:00:03]} Qc7 {[%emt 0:00:51]} 12. O-O-O {[%emt 0:09:35]} Bd7 {[%emt 0:02:22]} 13. Rhf1 {[%emt 0:04:22]} Be7 {[%emt 0:03:57]} 14. f4 {[%emt 0:09:04]} gxf4 {[%emt 0:00:10]} 15. Rxf4 {[%emt 0:00:35]} b5 {[%emt 0:05:54]} 16. a3 {[%emt 0:04:09]} Qb6 {[%emt 0:03:38]} 17. Bh4 {[%emt 0:11:48]} Ng6 {[%emt 0:16:33]} 18. Rxf6 {[%emt 0:01:20]} Nxh4 {[%emt 0:00:37]} 19. Qf2 {[%emt 0:01:13]} Bxf6 {[%emt 0:12:41]} 20. Qxf6 {[%emt 0:00:30]} Ng6 21. Nf5 Rh7 22. Nxd6+ {[%emt 0:32:58]} Kf8 {[%emt 0:01:30]} 23. Kb1 {[%emt 0:01:03]} Qc5 {[%emt 0:03:31]} 24. Nxf7 {[%emt 0:05:36]} Rxf7 {[%emt 0:00:01]} 25. Qxg6 {[%emt 0:00:02]} Qg5 {[%emt 0:00:14]} 26. Qxg5 {[%emt 0:00:43]} hxg5 {[%emt 0:00:01]} 27. Ne2 {[%emt 0:05:42]} Ke7 {[%emt 0:00:43]} 28. Nd4 {[%emt 0:00:34]} Rf2 {[%emt 0:00:16]} 29. Rg1 {[%emt 0:00:28]} g4 {[%emt 0:01:13]} 30. h4 {[%emt 0:00:32]} e5 {[%emt 0:02:06]} 31. Nf5+ {[%emt 0:00:02]} Bxf5 {[%emt 0:00:02]} 32. exf5 {[%emt 0:00:08]} Rxf5 {[%emt 0:02:36]} 33. Re1 {[%emt 0:00:02]} Rd8 {[%emt 0:00:43]} 34. Re2 {[%emt 0:01:43]} Kf6 {[%emt 0:01:54]} 35. c3 {[%emt 0:00:34]} Rh8 {[%emt 0:01:19]} 36. Rd2 {[%emt 0:00:31]} Rxh4 {[%emt 0:01:24]} 37. Rd6+ {[%emt 0:00:04]} Kg5 {[%emt 0:00:05]} 38. Rxa6 {[%emt 0:00:05]} Rh6 {[%emt 0:02:24]} 39. Ra8 {[%emt 0:00:58]} Rf2 {[%emt 0:01:23]} 40. Re8 {[%emt 0:00:51]} Kf4 {[%emt 0:00:36]} 41. g3+ {[%emt 0:00:29]} Kxg3 {[%emt 0:00:03]} 42. Rxe5 {[%emt 0:00:08]} Rh1+ {[%emt 0:01:04]} 43. Ka2 {[%emt 0:00:04]} Rhh2 {[%emt 0:00:07]} 44. Rxb5 {[%emt 0:00:07]} Rxb2+ {[%emt 0:00:08]} 45. Ka1 {[%emt 0:00:03]} Rbd2 {[%emt 0:00:46]} 46. Be6 {[%emt 0:00:24]} Rd1+ {[%emt 0:00:47]} 47. Rb1 {[%emt 0:00:05]} Rxb1+ {[%emt 0:00:05]} 48. Kxb1 {[%emt 0:00:03]} Kf4 {[%emt 0:00:05]} 49. a4 {[%emt 0:02:21]} g3 {[%emt 0:00:02]} 50. Bd5 {[%emt 0:00:06]} g2 {[%emt 0:00:10]} 51. Bxg2 {[%emt 0:00:06]} Rxg2 {[%emt 0:00:03]} 0-1

[Event "26th Abu Dhabi Master 2019"]
[Site "Abu Dhabi"]
[Date "2019.08.04"]
[Round "4.44"]
[White "Suleymanli, Aydin"]
[Black "Deshpande, Aniruddha"]
[Result "1-0"]
[ECO "E76"]
[WhiteElo "2416"]
[BlackElo "2234"]
[Annotator "NA"]
[PlyCount "43"]
[EventDate "2019.08.02"]
[EventType "swiss"]
[EventCountry "UAE"]
[SourceTitle "playchess.com"]
[Source "ChessBase"]
[SourceQuality "1"]
[TimeControl "5400+30"]

1. c4 Nf6 2. Nc3 g6 3. d4 Bg7 4. e4 d6 5. f4 O-O 6. Nf3 Na6 7. e5 Ng4 8. h3 Nh6 9. Bd3 dxe5 10. fxe5 Nf5 11. Ne2 c5 12. d5 b5 13. a3 Nd4 14. Nexd4 cxd4 15. O-O Nc5 16. Bg5 f6 17. exf6 exf6 18. Bh4 Ba6 19. Nxd4 bxc4 20. Nc6 Qb6 21. Bf2 Qxb2 22. Bd4 1-0

[Event "26th Abu Dhabi Master 2019"]
[Site "Abu Dhabi"]
[Date "2019.08.04"]
[Round "4.45"]
[White "Sankalp Gupta"]
[Black "Tashkhodzhaev, Akram"]
[Result "1/2-1/2"]
[ECO "A43"]
[WhiteElo "2416"]
[BlackElo "2123"]
[Annotator "NA"]
[PlyCount "45"]
[EventDate "2019.08.02"]
[EventType "swiss"]
[EventCountry "UAE"]
[SourceTitle "playchess.com"]
[Source "ChessBase"]
[SourceQuality "1"]
[TimeControl "5400+30"]

1. d4 {[%emt 0:01:55]} Nf6 {[%emt 0:00:00]} 2. Nf3 {[%emt 0:00:02]} c5 {[%emt 0:00:00]} 3. d5 {[%emt 0:00:09]} g6 {[%emt 0:00:38]} 4. Nc3 {[%emt 0:00:24]} Bg7 {[%emt 0:00:13]} 5. e4 {[%emt 0:00:03]} d6 {[%emt 0:00:07]} 6. h3 {[%emt 0:00:25]} O-O {[%emt 0:00:17]} 7. a4 {[%emt 0:00:02]} b6 {[%emt 0:06:27]} 8. Bf4 {[%emt 0:01:16]} Na6 {[%emt 0:02:35]} 9. Bc4 {[%emt 0:00:14]} Nc7 {[%emt 0:00:42]} 10. O-O {[%emt 0:00:47]} a6 {[%emt 0:01:12]} 11. e5 {[%emt 0:06:42]} Nfe8 {[%emt 0:00:12]} 12. Re1 {[%emt 0:16:15]} Bd7 {[%emt 0:07:47]} 13. Qe2 {[%emt 0:02:42]} Qc8 {[%emt 0:06:02]} 14. Bg5 {[%emt 0:04:09]} f6 {[%emt 0:02:03]} 15. exf6 {[%emt 0:04:37]} exf6 {[%emt 0:00:17]} 16. Bf4 {[%emt 0:00:07]} Rf7 {[%emt 0:02:12]} 17. Nd2 {[%emt 0:02:23]} Rb8 {[%emt 0:08:05]} 18. Qf3 {[%emt 0:11:37]} b5 {[%emt 0:04:23]} 19. Bf1 {[%emt 0:02:17]} Bf8 {[%emt 0:05:05]} 20. Nd1 {[%emt 0:07:37]} Qb7 {[%emt 0:05:14]} 21. axb5 {[%emt 0:02:20]} axb5 {[%emt 0:02:41]} 22. Ne3 {[%emt 0:00:03]} Ra8 {[%emt 0:03:07]} 23. Rab1 {[%emt 0:03:58]} 1/2-1/2

[Event "26th Abu Dhabi Master 2019"]
[Site "Abu Dhabi"]
[Date "2019.08.04"]
[Round "4.46"]
[White "Panda Sambit"]
[Black "Vaishali R"]
[Result "1/2-1/2"]
[ECO "A47"]
[WhiteElo "2126"]
[BlackElo "2344"]
[Annotator "NA"]
[PlyCount "67"]
[EventDate "2019.08.02"]
[EventType "swiss"]
[EventCountry "UAE"]
[SourceTitle "playchess.com"]
[Source "ChessBase"]
[SourceQuality "1"]
[TimeControl "5400+30"]

1. d4 {[%emt 0:00:00]} Nf6 {[%emt 0:00:06]} 2. Nf3 {[%emt 0:00:35]} b6 {[%emt 0:00:09]} 3. g3 {[%emt 0:00:09]} Bb7 {[%emt 0:00:06]} 4. Bg2 {[%emt 0:00:06]} c5 {[%emt 0:00:16]} 5. c4 {[%emt 0:03:50]} cxd4 {[%emt 0:03:09]} 6. Qxd4 {[%emt 0:00:10]} Nc6 {[%emt 0:00:21]} 7. Qd1 {[%emt 0:00:27]} g6 {[%emt 0:02:13]} 8. b3 {[%emt 0:07:14]} Bg7 {[%emt 0:01:02]} 9. Bb2 {[%emt 0:00:02]} O-O {[%emt 0:02:07]} 10. O-O {[%emt 0:00:13]} d5 {[%emt 0:18:22]} 11. cxd5 {[%emt 0:02:46]} Nb4 {[%emt 0:03:57]} 12. d6 {[%emt 0:03:59]} Rc8 {[%emt 0:03:45]} 13. a3 {[%emt 0:26:48]} Nbd5 {[%emt 0:11:48]} 14. Nbd2 {[%emt 0:21:05]} exd6 {[%emt 0:10:24]} 15. Rc1 {[%emt 0:01:42]} Re8 {[%emt 0:02:40]} 16. Re1 b5 {[%emt 0:00:30]} 17. b4 Nb6 {[%emt 0:00:30]} 18. Rxc8 Bxc8 {[%emt 0:00:30]} 19. Nd4 Na4 {[%emt 0:00:30]} 20. Ba1 a6 {[%emt 0:00:30]} 21. Qb3 Qb6 {[%emt 0:00:30]} 22. Rc1 Bb7 {[%emt 0:00:30]} 23. Bxb7 Qxb7 {[%emt 0:00:30]} 24. Qf3 d5 {[%emt 0:00:30]} 25. Qf4 Rc8 {[%emt 0:00:30]} 26. N2b3 Ne4 {[%emt 0:00:30]} 27. Na5 Rxc1+ {[%emt 0:00:30]} 28. Qxc1 Qd7 {[%emt 0:00:30]} 29. Qc6 Qxc6 {[%emt 0:00:30]} 30. Naxc6 Nec3 {[%emt 0:00:30]} 31. Bxc3 Nxc3 {[%emt 0:00:30]} 32. e3 Nb1 {[%emt 0:00:30]} 33. Nc2 Bb2 {[%emt 0:00:30]} 34. Nb8 1/2-1/2

[Event "26th Abu Dhabi Master 2019"]
[Site "Abu Dhabi"]
[Date "2019.08.04"]
[Round "4.47"]
[White "Salonika, Saina"]
[Black "Agmanov, Zhandos"]
[Result "0-1"]
[ECO "C12"]
[WhiteElo "2127"]
[BlackElo "2402"]
[Annotator "NA"]
[PlyCount "73"]
[EventDate "2019.08.02"]
[EventType "swiss"]
[EventCountry "UAE"]
[SourceTitle "playchess.com"]
[Source "ChessBase"]
[SourceQuality "1"]
[TimeControl "5400+30"]

1. e4 {[%emt 0:00:00]} e6 {[%emt 0:00:00]} 2. d4 {[%emt 0:00:00]} d5 {[%emt 0:00:00]} 3. Nc3 {[%emt 0:00:00]} Nf6 {[%emt 0:00:00]} 4. Bg5 {[%emt 0:00:00]} Bb4 {[%emt 0:00:13]} 5. e5 {[%emt 0:04:29]} h6 {[%emt 0:00:06]} 6. Be3 {[%emt 0:12:17]} Ne4 {[%emt 0:00:23]} 7. Nge2 {[%emt 0:02:02]} c5 {[%emt 0:06:05]} 8. a3 {[%emt 0:02:54]} Ba5 {[%emt 0:16:23]} 9. dxc5 {[%emt 0:04:49]} Nc6 {[%emt 0:11:05]} 10. b4 {[%emt 0:03:50]} Nxc3 {[%emt 0:01:18]} 11. Nxc3 {[%emt 0:00:07]} Bc7 {[%emt 0:09:51]} 12. Bb5 {[%emt 0:16:20]} Bxe5 {[%emt 0:04:25]} 13. Bd4 {[%emt 0:00:54]} Qf6 {[%emt 0:11:24]} 14. Ne2 {[%emt 0:01:15]} O-O {[%emt 0:03:44]} 15. Bxc6 {[%emt 0:07:03]} bxc6 {[%emt 0:00:05]} 16. Bxe5 {[%emt 0:04:45]} Qxe5 {[%emt 0:00:02]} 17. O-O {[%emt 0:00:21]} Qf6 18. f4 {[%emt 0:00:30]} Ba6 19. Qd2 {[%emt 0:00:30]} Bc4 20. Rab1 {[%emt 0:00:30]} a5 21. Rfe1 {[%emt 0:00:30]} axb4 22. axb4 {[%emt 0:00:30]} Bxe2 23. Rxe2 {[%emt 0:00:30]} Ra2 24. g3 {[%emt 0:00:30]} Rfa8 25. Rb3 {[%emt 0:00:30]} Qf5 26. Kg2 {[%emt 0:00:30]} h5 27. h4 {[%emt 0:00:30]} g6 28. Qe3 {[%emt 0:00:30]} R8a4 29. Qd2 {[%emt 0:00:30]} Kh7 30. Qc3 {[%emt 0:00:30]} Kg8 31. Qd2 {[%emt 0:00:30]} Kh7 32. Qc3 {[%emt 0:00:30]} Ra1 33. Qe5 {[%emt 0:00:30]} Qg4 34. Rbe3 {[%emt 0:00:30]} Rc1 35. Qf6 {[%emt 0:00:30]} Ra7 36. b5 {[%emt 0:00:30]} Kg8 37. bxc6 {[%emt 0:00:30]} 0-1

[Event "26th Abu Dhabi Master 2019"]
[Site "Abu Dhabi"]
[Date "2019.08.04"]
[Round "4.48"]
[White "Ashraf, Artin"]
[Black "Manush Shah"]
[Result "1/2-1/2"]
[ECO "D35"]
[WhiteElo "2141"]
[BlackElo "2373"]
[Annotator "NA"]
[PlyCount "41"]
[EventDate "2019.08.02"]
[EventType "swiss"]
[EventCountry "UAE"]
[SourceTitle "playchess.com"]
[Source "ChessBase"]
[SourceQuality "1"]
[TimeControl "5400+30"]

1. d4 {[%emt 0:00:00]} d5 {[%emt 0:02:08]} 2. c4 {[%emt 0:00:00]} e6 {[%emt 0:00:41]} 3. Nc3 {[%emt 0:00:44]} Nf6 {[%emt 0:00:06]} 4. cxd5 {[%emt 0:00:37]} exd5 {[%emt 0:00:10]} 5. Bg5 {[%emt 0:00:41]} Nbd7 {[%emt 0:00:37]} 6. e3 {[%emt 0:00:28]} c6 {[%emt 0:00:08]} 7. Qc2 {[%emt 0:00:09]} Bd6 {[%emt 0:02:39]} 8. Bd3 {[%emt 0:00:34]} h6 {[%emt 0:00:27]} 9. Bh4 {[%emt 0:00:14]} O-O {[%emt 0:00:35]} 10. Nf3 {[%emt 0:02:56]} Re8 {[%emt 0:00:11]} 11. O-O {[%emt 0:05:11]} Nf8 {[%emt 0:10:15]} 12. Bg3 {[%emt 0:10:06]} Bxg3 {[%emt 0:05:47]} 13. hxg3 {[%emt 0:00:26]} Qe7 {[%emt 0:02:25]} 14. Rab1 {[%emt 0:06:36]} Bg4 {[%emt 0:05:00]} 15. b4 {[%emt 0:07:59]} N8d7 {[%emt 0:05:24]} 16. Nd2 {[%emt 0:08:54]} Rac8 {[%emt 0:02:10]} 17. Rfc1 {[%emt 0:03:26]} Qd6 {[%emt 0:13:58]} 18. a4 {[%emt 0:05:23]} Bh5 {[%emt 0:04:09]} 19. Nf1 {[%emt 0:03:57]} Nf8 {[%emt 0:01:15]} 20. Bf5 {[%emt 0:05:41]} Bg6 {[%emt 0:02:59]} 21. Nd2 {[%emt 0:02:04]} 1/2-1/2

[Event "26th Abu Dhabi Master 2019"]
[Site "Abu Dhabi"]
[Date "2019.08.04"]
[Round "4.49"]
[White "Kulkarni, Rakesh"]
[Black "Mahalakshmi, M."]
[Result "0-1"]
[ECO "B10"]
[WhiteElo "2360"]
[BlackElo "2173"]
[Annotator "NA"]
[PlyCount "42"]
[EventDate "2019.08.02"]
[EventType "swiss"]
[EventCountry "UAE"]
[SourceTitle "playchess.com"]
[Source "ChessBase"]
[SourceQuality "1"]
[TimeControl "5400+30"]

1. e4 c6 2. c4 d5 3. exd5 cxd5 4. cxd5 Nf6 5. Nf3 Nxd5 6. Bc4 e6 7. O-O Be7 8. d4 O-O 9. Qe2 b6 10. Nc3 Nxc3 11. bxc3 Bb7 12. Bd3 Nd7 13. c4 Nf6 14. Bb2 Qc7 15. Rac1 Rac8 16. Rfd1 Rfe8 17. Ne5 Qb8 18. g4 g6 19. f4 Ba8 20. h3 Qb7 21. Kh2 Bd6 0-1

[Event "26th Abu Dhabi Master 2019"]
[Site "Abu Dhabi"]
[Date "2019.08.04"]
[Round "4.50"]
[White "Venkatesh, M.R."]
[Black "Soham Kamotra"]
[Result "1-0"]
[ECO "B15"]
[WhiteElo "2480"]
[BlackElo "2136"]
[Annotator "ChessBase"]
[PlyCount "36"]
[EventDate "2019.08.02"]
[EventType "swiss"]
[EventCountry "UAE"]
[SourceTitle "playchess.com"]
[Source "ChessBase"]
[SourceQuality "1"]
[TimeControl "5400+30"]

1. e4 {[%emt 0:07:03]} c6 {[%emt 0:00:00]} 2. d4 {[%emt 0:00:11]} d5 {[%emt 0:00:00]} 3. Nc3 {[%emt 0:00:08]} g6 {[%emt 0:00:42]} 4. h3 {[%emt 0:08:47]} Bg7 {[%emt 0:07:44]} 5. Nf3 {[%emt 0:00:11]} Nh6 {[%emt 0:00:08]} 6. Bd3 {[%emt 0:02:07]} O-O {[%emt 0:00:34]} 7. Bf4 {[%emt 0:02:17]} f6 {[%emt 0:00:09]} 8. O-O {[%emt 0:01:30]} Nf7 {[%emt 0:00:09]} 9. Bh2 {[%emt 0:05:40]} e6 {[%emt 0:13:13]} 10. Qe2 {[%emt 0:04:54]} Nd7 {[%emt 0:06:11]} 11. Rfe1 {[%emt 0:07:08]} b6 {[%emt 0:00:44]} 12. b4 {[%emt 0:15:33]} Bb7 {[%emt 0:01:46]} 13. Ba6 {[%emt 0:05:13]} Bxa6 {[%emt 0:16:18]} 14. Qxa6 {[%emt 0:00:07]} Qc8 {[%emt 0:00:13]} 15. Qd3 {[%emt 0:02:00]} Rd8 {[%emt 0:02:47]} 16. exd5 {[%emt 0:01:39]} cxd5 {[%emt 0:00:27]} 17. Nb5 {[%emt 0:02:19]} e5 {[%emt 0:01:07]} 18. Qb3 {[%emt 0:00:04]} Qb7 {[%emt 0:09:22]} 1-0

[Event "26th Abu Dhabi Master 2019"]
[Site "Abu Dhabi"]
[Date "2019.08.04"]
[Round "4.51"]
[White "Paramzina, Anastasya"]
[Black "Sammed Jaykumar, Shete"]
[Result "0-1"]
[ECO "B20"]
[WhiteElo "2300"]
[BlackElo "2416"]
[Annotator "NA"]
[PlyCount "106"]
[EventDate "2019.08.02"]
[EventType "swiss"]
[EventCountry "UAE"]
[SourceTitle "playchess.com"]
[Source "ChessBase"]
[SourceQuality "1"]
[TimeControl "5400+30"]

1. e4 c5 2. b3 Nc6 3. Bb2 e5 4. Bc4 d6 5. Ne2 Nf6 6. d3 g6 7. O-O Bg7 8. Nbc3 O-O 9. a4 a6 10. h3 Be6 11. Bxe6 fxe6 12. Ng3 Nd4 13. Nce2 b5 14. c3 Nxe2+ 15. Qxe2 Qb6 16. c4 bxc4 17. bxc4 Rab8 18. Bc1 Qc6 19. Bg5 Rb4 20. a5 Qb7 21. Qe3 Rb2 22. Bh6 Qb3 23. Bxg7 Kxg7 24. Rfc1 h6 25. Ne2 g5 26. Ng3 Ng8 27. Rf1 Ne7 28. Rad1 Nc6 29. Rd2 Nxa5 30. Qe2 Rxd2 31. Qxd2 Nc6 32. h4 gxh4 33. Nh5+ Kh7 34. Qe2 Nd4 35. Qg4 Rf7 36. Ra1 Qb2 37. Rf1 Qe2 38. Qxh4 Qxd3 39. Qd8 Qe2 40. Ng3 Qg4 41. Qxd6 Qf4 42. Qxc5 h5 43. Kh1 h4 44. Nh5 Qg5 45. Rd1 Rxf2 46. Qc7+ Kh6 47. Rg1 Qxh5 48. Qe7 Qg5 49. Qe8 Qf6 50. c5 h3 51. Qg8 hxg2+ 52. Rxg2 Qh4+ 53. Kg1 Nf3# 0-1

[Event "26th Abu Dhabi Master 2019"]
[Site "Abu Dhabi"]
[Date "2019.08.04"]
[Round "4.52"]
[White "Mendonca, Leon Luke"]
[Black "Utsab Chatterjee"]
[Result "1/2-1/2"]
[ECO "D02"]
[WhiteElo "2401"]
[BlackElo "2150"]
[Annotator "NA"]
[PlyCount "137"]
[EventDate "2019.08.02"]
[EventType "swiss"]
[EventCountry "UAE"]
[SourceTitle "playchess.com"]
[Source "ChessBase"]
[SourceQuality "1"]
[TimeControl "5400+30"]

1. d4 d5 2. Nf3 Nf6 3. Bf4 c5 4. e3 Nc6 5. c3 Qb6 6. Qb3 c4 7. Qc2 Bf5 8. Qc1 h6 9. Nbd2 Qd8 10. Be2 e6 11. O-O b5 12. Bd1 Bd6 13. Bxd6 Qxd6 14. Bc2 O-O 15. Re1 Ne4 16. Nxe4 Bxe4 17. Bxe4 dxe4 18. Nd2 f5 19. b3 cxb3 20. axb3 e5 21. Ra6 Qd7 22. b4 exd4 23. exd4 Rae8 24. Nb3 Rf6 {[%emt 1:42:00]} 25. Nc5 {[%emt 1:30:30]} Qd8 {[%emt 0:00:30]} 26. Qc2 {[%emt 0:00:30]} Rg6 {[%emt 0:00:30]} 27. Qe2 {[%emt 0:00:30]} Qg5 28. g3 e3 29. f4 Qd8 30. Qf3 Qc8 31. Rxe3 Rd8 32. Ra1 a5 33. d5 {[%emt 0:03:00]} Nb8 34. Rxa5 Nd7 35. Rxb5 Nb6 36. Ne6 Rd6 37. Rc5 Qa8 38. Rd3 Qa6 39. Nc7 Qa2 40. b5 Rd7 41. Rd1 Qa7 42. Rc6 Rxc6 43. dxc6 Rxc7 44. Qe3 Re7 45. Qc5 Rf7 46. Kg2 Kh7 47. Kh3 {[%emt 0:19:00]} Qa2 {[%emt 0:10:30]} 48. Qd4 Qe2 49. Qd3 Qh5+ 50. Kg2 Re7 51. Rd2 Re4 52. Rf2 Qe8 53. h3 Nc4 {[%emt 0:03:00]} 54. Kh2 Nb6 55. g4 Qe6 56. gxf5 Qxf5 57. c7 Re5 58. Qxf5+ Rxf5 59. Rd2 Rxb5 60. Rd6 Rc5 61. Rxb6 Rxc3 62. Rb7 Kg6 63. Kg2 Kf5 64. c8=Q+ Rxc8 65. Rxg7 Kxf4 66. Rf7+ Kg5 67. Rg7+ Kf6 68. Ra7 Rc6 69. Kg3 1/2-1/2

[Event "26th Abu Dhabi Master 2019"]
[Site "Abu Dhabi"]
[Date "2019.08.04"]
[Round "4.53"]
[White "Pranav Anand"]
[Black "Mahdian, Anousha"]
[Result "1/2-1/2"]
[ECO "D12"]
[WhiteElo "2347"]
[BlackElo "2118"]
[Annotator "NA"]
[PlyCount "119"]
[EventDate "2019.08.02"]
[EventType "swiss"]
[EventCountry "UAE"]
[SourceTitle "playchess.com"]
[Source "ChessBase"]
[SourceQuality "1"]
[TimeControl "5400+30"]

1. d4 {[%emt 0:00:00]} d5 {[%emt 0:00:00]} 2. c4 {[%emt 0:00:00]} c6 {[%emt 0:00:00]} 3. Nf3 {[%emt 0:00:00]} Nf6 {[%emt 0:00:00]} 4. e3 {[%emt 0:00:00]} Bf5 {[%emt 0:00:00]} 5. Nc3 {[%emt 0:00:03]} a6 {[%emt 0:00:00]} 6. Ne5 {[%emt 0:00:20]} Nbd7 {[%emt 0:00:16]} 7. Qb3 {[%emt 0:00:28]} Qc7 {[%emt 0:00:10]} 8. cxd5 {[%emt 0:00:43]} Nxe5 {[%emt 0:00:35]} 9. dxe5 {[%emt 0:00:08]} Nxd5 {[%emt 0:00:05]} 10. Nxd5 {[%emt 0:00:11]} cxd5 {[%emt 0:00:04]} 11. Bd2 {[%emt 0:00:19]} e6 {[%emt 0:00:13]} 12. Rc1 {[%emt 0:01:35]} Qd7 {[%emt 0:00:13]} 13. Ba5 {[%emt 0:08:06]} Rc8 {[%emt 0:02:20]} 14. Rxc8+ {[%emt 0:13:55]} Qxc8 {[%emt 0:00:06]} 15. Kd2 {[%emt 0:00:08]} Be7 {[%emt 0:00:28]} 16. Be2 {[%emt 0:01:42]} O-O {[%emt 0:00:52]} 17. Rc1 {[%emt 0:08:03]} Qa8 {[%emt 0:00:10]} 18. Qc3 {[%emt 0:15:13]} h6 {[%emt 0:00:06]} 19. a3 f6 {[%emt 0:01:21]} 20. Bb4 {[%emt 0:22:24]} d4 {[%emt 0:01:56]} 21. exd4 {[%emt 0:01:42]} Bxb4 {[%emt 0:00:06]} 22. axb4 {[%emt 0:03:59]} fxe5 {[%emt 0:00:14]} 23. dxe5 {[%emt 0:00:49]} Qd8+ {[%emt 0:10:51]} 24. Ke1 {[%emt 0:00:28]} Qh4 {[%emt 0:07:39]} 25. Bf3 {[%emt 0:01:37]} Qxh2 {[%emt 0:16:55]} 26. Qd4 {[%emt 0:00:29]} Bg4 {[%emt 0:03:07]} 27. Qxg4 {[%emt 0:06:46]} Qg1+ {[%emt 0:00:30]} 28. Kd2 {[%emt 0:00:30]} Rd8+ {[%emt 0:00:30]} 29. Kc2 {[%emt 0:00:30]} Rc8+ {[%emt 0:00:30]} 30. Kb3 {[%emt 0:00:30]} Qxc1 {[%emt 0:00:30]} 31. Qxe6+ {[%emt 0:00:30]} Kh8 {[%emt 0:00:30]} 32. Bxb7 Qd1+ 33. Ka3 {[%emt 0:01:00]} Qa1+ {[%emt 0:39:23]} 34. Qa2 {[%emt 0:00:05]} Qxa2+ {[%emt 0:00:02]} 35. Kxa2 {[%emt 0:00:06]} Rb8 {[%emt 0:00:01]} 36. Bxa6 {[%emt 0:01:29]} Rxb4 {[%emt 0:00:03]} 37. Ka3 {[%emt 0:00:25]} Re4 {[%emt 0:00:07]} 38. b4 {[%emt 0:00:08]} Rxe5 {[%emt 0:00:04]} 39. Bc4 {[%emt 0:01:17]} Rf5 {[%emt 0:01:46]} 40. f3 {[%emt 0:01:30]} Rg5 {[%emt 0:01:43]} 41. g4 {[%emt 0:04:38]} h5 {[%emt 0:00:14]} 42. gxh5 {[%emt 0:00:14]} Rf5 {[%emt 0:00:01]} 43. Be2 {[%emt 0:05:49]} Re5 {[%emt 0:04:57]} 44. Bd1 {[%emt 0:00:30]} Rxh5 {[%emt 0:00:59]} 45. Ka4 {[%emt 0:00:08]} Rd5 {[%emt 0:00:47]} 46. Bc2 {[%emt 0:00:11]} g5 {[%emt 0:00:05]} 47. Be4 {[%emt 0:01:26]} Re5 {[%emt 0:00:12]} 48. Bc6 {[%emt 0:01:37]} Rf5 {[%emt 0:00:09]} 49. b5 {[%emt 0:00:17]} g4 {[%emt 0:00:14]} 50. fxg4 {[%emt 0:00:25]} Rf4+ {[%emt 0:00:01]} 51. Ka5 {[%emt 0:00:06]} Rxg4 {[%emt 0:00:03]} 52. b6 {[%emt 0:00:05]} Rg7 {[%emt 0:01:13]} 53. Kb5 {[%emt 0:00:43]} Kg8 {[%emt 0:04:51]} 54. Kc5 {[%emt 0:00:13]} Kf8 {[%emt 0:00:04]} 55. Kd6 {[%emt 0:00:06]} Rh7 {[%emt 0:00:06]} 56. Bd7 {[%emt 0:00:30]} Rh6+ {[%emt 0:00:05]} 57. Be6 {[%emt 0:00:05]} Rh2 {[%emt 0:01:02]} 58. b7 {[%emt 0:00:44]} Rb2 {[%emt 0:00:02]} 59. Kc7 {[%emt 0:00:05]} Rxb7+ {[%emt 0:00:03]} 60. Kxb7 {[%emt 0:00:05]} 1/2-1/2

[Event "26th Abu Dhabi Master 2019"]
[Site "Abu Dhabi"]
[Date "2019.08.04"]
[Round "4.54"]
[White "Tabada, Jobannie C."]
[Black "Nandhidhaa, P V"]
[Result "0-1"]
[ECO "B48"]
[WhiteElo "2216"]
[BlackElo "2259"]
[Annotator "NA"]
[PlyCount "46"]
[EventDate "2019.08.02"]
[EventType "swiss"]
[EventCountry "UAE"]
[SourceTitle "playchess.com"]
[Source "ChessBase"]
[SourceQuality "1"]
[TimeControl "5400+30"]

1. e4 c5 2. Nf3 e6 3. d4 cxd4 4. Nxd4 Nc6 5. Nc3 Qc7 6. Be3 Nf6 7. Bd3 a6 8. O-O Be7 9. Nb3 b5 10. f4 d6 11. Qf3 Bb7 12. a4 b4 13. Ne2 O-O 14. Qh3 e5 15. Ng3 exf4 16. Rxf4 Ne5 17. Nd4 Ng6 18. Ndf5 d5 19. e5 Qxe5 20. Raf1 Bc8 21. Nh5 Nxh5 22. Qxh5 Bxf5 23. Bxf5 Qxe3+ 0-1

[Event "26th Abu Dhabi Master 2019"]
[Site "Abu Dhabi"]
[Date "2019.08.04"]
[Round "4.55"]
[White "Krishnater Kushager"]
[Black "Panesar Vedant"]
[Result "1/2-1/2"]
[ECO "D38"]
[WhiteElo "2324"]
[BlackElo "2092"]
[Annotator "NA"]
[PlyCount "46"]
[EventDate "2019.08.02"]
[EventType "swiss"]
[EventCountry "UAE"]
[SourceTitle "playchess.com"]
[Source "ChessBase"]
[SourceQuality "1"]
[TimeControl "5400+30"]

1. d4 {[%emt 0:00:00]} Nf6 {[%emt 0:00:00]} 2. c4 {[%emt 0:00:00]} e6 {[%emt 0:00:00]} 3. Nf3 {[%emt 0:00:00]} d5 {[%emt 0:00:15]} 4. Nc3 {[%emt 0:00:07]} Bb4 {[%emt 0:00:07]} 5. Bg5 {[%emt 0:00:19]} h6 {[%emt 0:00:08]} 6. Bxf6 {[%emt 0:00:09]} Qxf6 {[%emt 0:00:02]} 7. Qa4+ {[%emt 0:00:15]} Nc6 {[%emt 0:00:07]} 8. e3 {[%emt 0:00:06]} O-O {[%emt 0:00:45]} 9. Be2 {[%emt 0:06:48]} dxc4 {[%emt 0:02:09]} 10. a3 {[%emt 0:00:26]} Bd6 {[%emt 0:06:51]} 11. O-O {[%emt 0:03:05]} e5 {[%emt 0:05:29]} 12. d5 {[%emt 0:00:26]} Ne7 {[%emt 0:03:16]} 13. Qxc4 {[%emt 0:01:33]} Bf5 {[%emt 0:03:04]} 14. Rfd1 {[%emt 0:11:03]} a6 {[%emt 0:06:58]} 15. Ne4 {[%emt 0:03:14]} Bxe4 {[%emt 0:00:18]} 16. Qxe4 {[%emt 0:00:02]} Qg6 {[%emt 0:02:20]} 17. Qxg6 {[%emt 0:00:22]} Nxg6 {[%emt 0:00:19]} 18. Nd2 {[%emt 0:00:14]} f5 {[%emt 0:03:50]} 19. g4 {[%emt 0:11:43]} f4 {[%emt 0:09:57]} 20. Rac1 {[%emt 0:02:25]} Rf7 {[%emt 0:08:00]} 21. Ne4 {[%emt 0:06:09]} Raf8 {[%emt 0:02:24]} 22. g5 {[%emt 0:11:08]} fxe3 {[%emt 0:07:05]} 23. fxe3 {[%emt 0:00:12]} Nh4 {[%emt 0:00:58]} 1/2-1/2

[Event "26th Abu Dhabi Master 2019"]
[Site "Abu Dhabi"]
[Date "2019.08.04"]
[Round "4.56"]
[White "Mithil, Ajgaonkar"]
[Black "Vatsal Singhania"]
[Result "0-1"]
[ECO "D30"]
[WhiteElo "2314"]
[BlackElo "2213"]
[Annotator "NA"]
[PlyCount "30"]
[EventDate "2019.08.02"]
[EventType "swiss"]
[EventCountry "UAE"]
[SourceTitle "playchess.com"]
[Source "ChessBase"]
[SourceQuality "1"]
[TimeControl "5400+30"]

1. d4 d5 2. c4 e6 3. e3 Nf6 4. Nf3 b6 5. b3 Bb7 6. Bd3 Bd6 7. O-O O-O 8. Bb2 Nbd7 9. Qe2 Ne4 10. Nfd2 f5 11. f3 Bxh2+ 12. Kxh2 Qh4+ 13. Kg1 Ng3 14. Qe1 Nf6 15. c5 g5 0-1